fUSD/lending_fUSD_20240814
["ID","MTS","AMOUNT","RATE_DAILY","PERIOD"]
[334852453,1723609801546,1762.22,0.00013972,2]
[334852454,1723609801584,503.382588,0.00013698,2]
[334852455,1723609803607,500.0,0.00013698,2]
[334852456,1723609803886,500.0,0.00013972,2]
[334852457,1723609805650,500.0,0.00013698,2]
[334852458,1723609805955,500.0,0.00013972,2]
[334852459,1723609806829,1353.62,0.00013698,2]
[334852460,1723609807140,1353.62,0.00013972,2]
[334852461,1723609807799,1289.65,0.00013698,2]
[334852462,1723609808059,1289.65,0.00013972,2]
[334852463,1723609809140,500.0,0.00013698,2]
[334852464,1723609809414,500.0,0.00013972,2]
[334852465,1723609809511,500.0,0.00013698,2]
[334852466,1723609809797,500.0,0.00013972,2]
[334852467,1723609810457,418.30183294,0.00013698,2]
[334852468,1723609811411,893.73,0.00013698,2]
[334852469,1723609811668,893.73,0.00013972,2]
[334852470,1723609812279,501.23560488,0.00013698,2]
[334852471,1723609812577,500.0,0.00013698,2]
[334852472,1723609812841,500.0,0.00013972,2]
[334852473,1723609813615,500.0,0.00013698,2]
[334852474,1723609814085,500.0,0.00013972,2]
[334852475,1723609815074,500.0,0.00013698,2]
[334852476,1723609815138,500.0,0.00013972,2]
[334852477,1723609817008,500.0,0.00013698,2]
[334852478,1723609817274,500.0,0.00013972,2]
[334852479,1723609817535,500.0,0.00013698,2]
[334852480,1723609818129,500.0,0.00013972,2]
[334852481,1723609818237,2410.79,0.00013698,2]
[334852482,1723609818340,500.0,0.00013698,2]
[334852483,1723609818413,1137.78,0.00013698,2]
[334852484,1723609818504,2410.79,0.00013972,2]
[334852485,1723609818650,500.0,0.00013972,2]
[334852486,1723609818704,1137.78,0.00013972,2]
[334852487,1723609823128,684.86,0.00013698,2]
[334852488,1723609823259,922.8196516,0.00013999,2]
[334852489,1723609823339,500.0,0.00013698,2]
[334852490,1723609823394,684.86,0.00013972,2]
[334852491,1723609823596,500.0,0.00013972,2]
[334852492,1723609825611,504.95,0.00013698,2]
[334852493,1723609825847,504.95,0.00013972,2]
[334852494,1723609826280,806.17,0.00013698,2]
[334852495,1723609826550,806.17,0.00013972,2]
[334852496,1723609826589,500.0,0.00013698,2]
[334852497,1723609826816,500.0,0.00013972,2]
[334852498,1723609826970,859.31,0.00013698,2]
[334852499,1723609827007,500.0,0.00013698,2]
[334852500,1723609827194,3271.69,0.00013698,2]
[334852501,1723609827245,859.31,0.00013972,2]
[334852502,1723609827276,500.0,0.00013972,2]
[334852503,1723609827404,3271.69,0.00013972,2]
[334852504,1723609827926,500.0,0.00013698,2]
[334852505,1723609828240,500.0,0.00013972,2]
[334852506,1723609828928,23900.0,0.00013764,2]
[334852507,1723609829631,500.0,0.00013698,2]
[334852508,1723609829932,500.0,0.00013972,2]
[334852509,1723609830067,174.36413939,0.00013698,2]
[334852525,1723609832146,727.71,0.00013698,2]
[334852533,1723609832179,-679.71,0.00014046,2]
[334852548,1723609832240,-101.7989,0.00014046,2]
[334852550,1723609832249,-946.93,0.00014087,2]
[334852552,1723609832258,-301.85,0.0001409,2]
[334852554,1723609832267,-224.48019548,0.00014145,2]
[334852556,1723609832276,-192.40609866,0.00014145,2]
[334852558,1723609832286,-300.0,0.00014145,2]
[334852559,1723609832295,-300.0,0.00014145,2]
[334852560,1723609832304,-2754.98340789,0.00014146,2]
[334852561,1723609832316,-1014.73409211,0.00014146,2]
[334852562,1723609832325,-5757.9,0.00014146,2]
[334852563,1723609832335,-7198.21,0.00014235,2]
[334852564,1723609832344,-1410.06,0.00014235,2]
[334852565,1723609832354,-625.36,0.00014235,2]
[334852566,1723609832363,-500.0,0.00014235,2]
[334852567,1723609832373,-920.35,0.00014235,2]
[334852568,1723609832383,-783.7679746,0.00014235,2]
[334852569,1723609832394,-271.3220254,0.00014235,2]
[334852570,1723609832404,-1754.45,0.00014235,2]
[334852571,1723609832413,-1623.86424475,0.00014235,2]
[334852572,1723609832424,-2859.09575525,0.00014235,2]
[334852573,1723609832433,-500.0,0.00014235,2]
[334852574,1723609832443,-1145.05,0.00014235,2]
[334852575,1723609832453,-500.0,0.00014235,2]
[334852576,1723609832462,-1316.41,0.00014235,2]
[334852577,1723609832472,-1055.66,0.00014235,2]
[334852578,1723609832481,-8338.42694141,0.00014236,2]
[334852580,1723609832492,-818.82444517,0.00014236,2]
[334852583,1723609832502,-757.13168339,0.00014236,2]
[334852585,1723609832513,-659.50813323,0.00014236,2]
[334852590,1723609832554,408.77,0.00013764,2]
[334852600,1723609832620,-711.6,0.00014236,2]
[334852613,1723609832690,727.71,0.00013972,2]
[334852617,1723609832707,-4390.21581886,0.00014236,2]
[334852621,1723609832723,-279.69657276,0.00014236,2]
[334852624,1723609832734,-662.54834617,0.00014236,2]
[334852630,1723609832783,500.0,0.00013698,2]
[334852631,1723609832864,500.0,0.00013972,2]
[334852632,1723609832900,500.0,0.00013698,2]
[334852633,1723609833499,500.0,0.00013972,2]
[334852634,1723609834447,500.0,0.00013698,2]
[334852635,1723609834631,500.0,0.00013698,2]
[334852636,1723609834714,500.0,0.00013972,2]
[334852637,1723609835208,500.0,0.00013972,2]
[334852638,1723609835340,528.47,0.00013698,2]
[334852639,1723609836002,528.47,0.00013972,2]
[334852640,1723609836142,1104.85,0.00013698,2]
[334852641,1723609836254,1104.85,0.00013972,2]
[334852642,1723609836957,500.0,0.00013698,2]
[334852643,1723609837293,500.0,0.00013972,2]
[334852644,1723609838373,-500.0,0.00014235,2]
[334852645,1723609838383,-500.0,0.00014235,2]
[334852646,1723609838395,-1869.05284405,0.00014236,2]
[334852647,1723609838436,-4186.27582778,0.00014236,2]
[334852648,1723609838448,-5711.16854345,0.00014236,2]
[334852649,1723609838460,-3545.23258283,0.00014236,2]
[334852650,1723609838497,-1080.45385789,0.00014236,2]
[334852651,1723609838614,-255500.64159301,0.00014236,2]
[334852652,1723609838623,-4416.77,0.00014245,2]
[334852653,1723609838633,-2689.76,0.00014245,2]
[334852654,1723609838644,-2554.53,0.00014245,2]
[334852655,1723609838653,-2895.53,0.00014245,2]
[334852656,1723609838663,-1141.74,0.00014245,2]
[334852657,1723609838673,-521.36,0.00014245,2]
[334852658,1723609838683,-542.34,0.00014245,2]
[334852659,1723609838693,-58647.65,0.00014245,2]
[334852660,1723609838703,-1314.87,0.00014245,2]
[334852661,1723609838713,-7327.95,0.00014245,2]
[334852662,1723609838722,-253.750419,0.00014245,2]
[334852663,1723609838732,-167.401742,0.00014245,2]
[334852665,1723609838742,-3009.04,0.00014245,2]
[334852667,1723609838752,-156.685771,0.00014245,2]
[334852669,1723609838762,-2253.79,0.00014245,2]
[334852671,1723609838772,-3871.06,0.00014245,2]
[334852673,1723609838782,-500.0,0.00014245,2]
[334852675,1723609838791,-155.98,0.00014245,2]
[334852677,1723609838801,-500.0,0.00014245,2]
[334852679,1723609838811,-1830.76,0.00014245,2]
[334852681,1723609838821,-857.71,0.00014245,2]
[334852683,1723609838831,-500.0,0.00014245,2]
[334852685,1723609838840,-2267.76,0.00014245,2]
[334852687,1723609838851,-2386.75,0.00014245,2]
[334852689,1723609838861,-2013.35,0.00014245,2]
[334852691,1723609838870,-500.0,0.00014245,2]
[334852693,1723609838880,-949.37,0.00014245,2]
[334852695,1723609838890,-500.0,0.00014245,2]
[334852697,1723609838899,-1349.62,0.00014245,2]
[334852699,1723609838908,-225.02687257,0.00014245,2]
[334852701,1723609838918,-500.0,0.00014245,2]
[334852703,1723609838928,-3827.33,0.00014245,2]
[334852705,1723609838938,-2013.19,0.00014245,2]
[334852706,1723609838947,-1443.5,0.00014245,2]
[334852707,1723609838957,-949.47,0.00014245,2]
[334852708,1723609838967,-1517.58,0.00014245,2]
[334852710,1723609838977,-3668.14,0.00014245,2]
[334852712,1723609838990,-2773.87,0.00014245,2]
[334852714,1723609838999,-500.0,0.00014245,2]
[334852716,1723609839009,-687.08,0.00014245,2]
[334852718,1723609839019,-2141.81,0.00014245,2]
[334852720,1723609839031,-1091.39,0.00014245,2]
[334852722,1723609839041,-3333.3,0.00014245,2]
[334852724,1723609839050,-1504.35,0.00014245,2]
[334852726,1723609839061,-1571.19,0.00014245,2]
[334852728,1723609839070,-1686.8,0.00014245,2]
[334852730,1723609839081,-2339.03,0.00014245,2]
[334852732,1723609839091,-2952.44,0.00014245,2]
[334852734,1723609839101,-2491.82,0.00014245,2]
[334852736,1723609839110,-6411.45,0.00014245,2]
[334852737,1723609839119,-537.76457582,0.00014246,2]
[334852738,1723609839129,-921.57,0.00014246,2]
[334852739,1723609839139,-516.77522578,0.00014246,2]
[334852740,1723609839149,-500.0,0.00014246,2]
[334852741,1723609839159,-500.0,0.00014246,2]
[334852742,1723609839169,-514.29090475,0.00014246,2]
[334852743,1723609839179,-500.0,0.00014246,2]
[334852744,1723609839188,-500.0,0.00014246,2]
[334852745,1723609839198,-500.0,0.00014246,2]
[334852746,1723609839208,-799.62,0.00014246,2]
[334852747,1723609839218,-500.0,0.00014246,2]
[334852748,1723609839227,-500.0,0.00014246,2]
[334852749,1723609839236,-500.0,0.00014246,2]
[334852750,1723609839246,-500.0,0.00014246,2]
[334852751,1723609839256,-905.52,0.00014246,2]
[334852752,1723609839266,-500.0,0.00014246,2]
[334852753,1723609839276,-232.51432651,0.00014246,2]
[334852754,1723609839286,-500.0,0.00014246,2]
[334852755,1723609839295,-500.0,0.00014246,2]
[334852756,1723609839305,-500.0,0.00014246,2]
[334852757,1723609839314,-500.0,0.00014246,2]
[334852758,1723609839324,-877.68,0.00014246,2]
[334852759,1723609839335,-1597.53,0.00014246,2]
[334852760,1723609839345,-500.0,0.00014246,2]
[334852761,1723609839354,-500.0,0.00014246,2]
[334852762,1723609839363,-500.0,0.00014246,2]
[334852763,1723609839372,-465.52386649,0.00014246,2]
[334852764,1723609839383,-1514.3,0.00014246,2]
[334852765,1723609839393,-543.8250892,0.00014246,2]
[334852766,1723609839403,-500.0,0.00014246,2]
[334852767,1723609839412,-500.0,0.00014246,2]
[334852768,1723609839422,-500.0,0.00014246,2]
[334852769,1723609839432,-1130.83,0.00014246,2]
[334852770,1723609839442,-500.0,0.00014246,2]
[334852771,1723609839451,-534.84425779,0.00014246,2]
[334852772,1723609839461,-500.0,0.00014246,2]
[334852773,1723609839471,-500.0,0.00014246,2]
[334852774,1723609839481,-500.0,0.00014246,2]
[334852775,1723609839490,-500.0,0.00014246,2]
[334852776,1723609839499,-500.0,0.00014246,2]
[334852777,1723609839509,-500.0,0.00014246,2]
[334852778,1723609839519,-500.0,0.00014246,2]
[334852779,1723609839528,-500.0,0.00014246,2]
[334852780,1723609839538,-512.96,0.00014246,2]
[334852781,1723609839547,-500.0,0.00014246,2]
[334852782,1723609839556,-500.0,0.00014246,2]
[334852783,1723609839566,-500.0,0.00014246,2]
[334852784,1723609839575,-500.0,0.00014246,2]
[334852785,1723609839585,-500.0,0.00014246,2]
[334852786,1723609839595,-500.0,0.00014246,2]
[334852787,1723609839604,-825.54,0.00014246,2]
[334852788,1723609839614,-500.0,0.00014246,2]
[334852789,1723609839624,-500.0,0.00014246,2]
[334852790,1723609839634,-500.0,0.00014246,2]
[334852791,1723609839644,-688.2,0.00014246,2]
[334852792,1723609839654,-500.0,0.00014246,2]
[334852793,1723609839664,-500.0,0.00014246,2]
[334852794,1723609839674,-508.74,0.00014246,2]
[334852795,1723609839684,-966.26,0.00014246,2]
[334852796,1723609839694,-500.0,0.00014246,2]
[334852797,1723609839703,-500.0,0.00014246,2]
[334852798,1723609839714,-882.14,0.00014246,2]
[334852799,1723609839724,-500.0,0.00014246,2]
[334852800,1723609839734,-535.68604227,0.00014246,2]
[334852801,1723609839744,-500.0,0.00014246,2]
[334852802,1723609839753,-305.38921657,0.00014246,2]
[334852803,1723609839763,-500.0,0.00014246,2]
[334852804,1723609839772,-500.0,0.00014246,2]
[334852805,1723609839782,-500.0,0.00014246,2]
[334852806,1723609839791,-500.0,0.00014246,2]
[334852807,1723609839801,-500.0,0.00014246,2]
[334852808,1723609839811,-521.92,0.00014246,2]
[334852809,1723609839821,-500.0,0.00014246,2]
[334852810,1723609839830,-500.0,0.00014246,2]
[334852811,1723609839840,-703.01,0.00014246,2]
[334852812,1723609839849,-500.0,0.00014246,2]
[334852813,1723609839859,-500.0,0.00014246,2]
[334852814,1723609839868,-1055.94,0.00014246,2]
[334852815,1723609839878,-500.0,0.00014246,2]
[334852816,1723609839888,-500.0,0.00014246,2]
[334852817,1723609839897,-500.0,0.00014246,2]
[334852818,1723609839907,-500.0,0.00014246,2]
[334852819,1723609839917,-500.0,0.00014246,2]
[334852820,1723609839928,-500.0,0.00014246,2]
[334852821,1723609839938,-500.0,0.00014246,2]
[334852822,1723609839947,-500.0,0.00014246,2]
[334852823,1723609839957,-646.22,0.00014246,2]
[334852824,1723609839966,-500.0,0.00014246,2]
[334852825,1723609839976,-2252.71,0.00014246,2]
[334852826,1723609839989,-500.0,0.00014246,2]
[334852827,1723609839999,-880.31,0.00014246,2]
[334852828,1723609840008,-500.0,0.00014246,2]
[334852829,1723609840019,-1294.46,0.00014246,2]
[334852830,1723609840028,-500.0,0.00014246,2]
[334852831,1723609840039,-500.0,0.00014246,2]
[334852832,1723609840048,-951.77,0.00014246,2]
[334852833,1723609840059,-500.0,0.00014246,2]
[334852834,1723609840070,-500.0,0.00014246,2]
[334852835,1723609840080,-501.2,0.00014246,2]
[334852836,1723609840090,-2007.46,0.00014246,2]
[334852837,1723609840099,-1637.64,0.00014246,2]
[334852838,1723609840109,-500.0,0.00014246,2]
[334852839,1723609840119,-500.0,0.00014246,2]
[334852840,1723609840129,-500.0,0.00014246,2]
[334852841,1723609840139,-500.0,0.00014246,2]
[334852842,1723609840149,-500.0,0.00014246,2]
[334852843,1723609840159,-200.0,0.00014246,2]
[334852844,1723609840169,-200.0,0.00014246,2]
[334852845,1723609840179,-532.67,0.00014246,2]
[334852846,1723609840188,-200.0,0.00014246,2]
[334852847,1723609840198,-200.0,0.00014246,2]
[334852848,1723609840207,-249.0,0.00014246,2]
[334852849,1723609840217,-500.0,0.00014246,2]
[334852850,1723609840227,-500.0,0.00014246,2]
[334852851,1723609840236,-500.0,0.00014246,2]
[334852852,1723609840247,-1243.67,0.00014246,2]
[334852853,1723609840256,-1029.48,0.00014246,2]
[334852854,1723609840266,-500.0,0.00014246,2]
[334852855,1723609840276,-500.0,0.00014246,2]
[334852856,1723609840286,-838.15,0.00014246,2]
[334852857,1723609840296,-632.46,0.00014246,2]
[334852858,1723609840306,-196.09009774,0.00014246,2]
[334852859,1723609840315,-562.14,0.00014246,2]
[334852860,1723609840324,-735.43,0.00014246,2]
[334852861,1723609840334,-500.0,0.00014246,2]
[334852862,1723609840343,-924.42,0.00014246,2]
[334852863,1723609840353,-500.0,0.00014246,2]
[334852864,1723609840362,-500.0,0.00014246,2]
[334852865,1723609840372,-679.38,0.00014246,2]
[334852866,1723609840382,-500.0,0.00014246,2]
[334852867,1723609840391,-500.0,0.00014246,2]
[334852868,1723609840401,-2016.25,0.00014246,2]
[334852869,1723609840410,-500.0,0.00014246,2]
[334852870,1723609840420,-996.84,0.00014246,2]
[334852871,1723609840430,-500.0,0.00014246,2]
[334852872,1723609840440,-2074.06,0.00014246,2]
[334852873,1723609840450,-507.01371575,0.00014246,2]
[334852874,1723609840459,-500.0,0.00014246,2]
[334852875,1723609840472,-500.0,0.00014246,2]
[334852876,1723609840482,-500.0,0.00014246,2]
[334852877,1723609840491,-1744.71,0.00014246,2]
[334852878,1723609840501,-500.0,0.00014246,2]
[334852879,1723609840510,-500.0,0.00014246,2]
[334852880,1723609840519,-993.13,0.00014246,2]
[334852881,1723609840528,-1346.19,0.00014246,2]
[334852882,1723609840537,-571.62,0.00014246,2]
[334852883,1723609840547,-1990.94,0.00014246,2]
[334852884,1723609840556,-1138.63,0.00014246,2]
[334852885,1723609840566,-500.0,0.00014246,2]
[334852886,1723609840576,-649.59867981,0.00014246,2]
[334852887,1723609840585,-500.0,0.00014246,2]
[334852888,1723609840595,-500.0,0.00014246,2]
[334852889,1723609840604,-500.0,0.00014246,2]
[334852890,1723609840614,-1184.63,0.00014246,2]
[334852891,1723609840623,-570.91,0.00014246,2]
[334852892,1723609840633,-2160.46,0.00014246,2]
[334852893,1723609840643,-989.17,0.00014246,2]
[334852894,1723609840652,-500.0,0.00014246,2]
[334852895,1723609840662,-1186.27,0.00014246,2]
[334852896,1723609840672,-500.0,0.00014246,2]
[334852897,1723609840681,-500.0,0.00014246,2]
[334852898,1723609840691,-500.0,0.00014246,2]
[334852899,1723609840700,-1867.57,0.00014246,2]
[334852900,1723609840710,-1273.12,0.00014246,2]
[334852901,1723609840720,-629.81,0.00014246,2]
[334852902,1723609840729,-500.0,0.00014246,2]
[334852903,1723609840739,-787.73,0.00014246,2]
[334852905,1723609840749,-500.0,0.00014246,2]
[334852907,1723609840759,-840.85,0.00014246,2]
[334852908,1723609840768,-500.0,0.00014246,2]
[334852909,1723609840778,-506.46,0.00014246,2]
[334852910,1723609840787,-500.0,0.00014246,2]
[334852911,1723609840797,-500.0,0.00014246,2]
[334852912,1723609840807,-816.91,0.00014246,2]
[334852913,1723609840817,-1315.34,0.00014246,2]
[334852914,1723609840827,-500.0,0.00014246,2]
[334852915,1723609840836,-500.0,0.00014246,2]
[334852916,1723609840846,-742.37,0.00014246,2]
[334852917,1723609840855,-2161.83,0.00014246,2]
[334852918,1723609840865,-500.0,0.00014246,2]
[334852919,1723609840875,-500.0,0.00014246,2]
[334852920,1723609840884,-500.0,0.00014246,2]
[334852921,1723609840896,-682.41,0.00014246,2]
[334852922,1723609840905,-1020.28,0.00014246,2]
[334852923,1723609840915,-823.18,0.00014246,2]
[334852924,1723609840925,-697.5,0.00014246,2]
[334852925,1723609840935,-500.0,0.00014246,2]
[334852926,1723609840944,-500.0,0.00014246,2]
[334852927,1723609840954,-500.0,0.00014246,2]
[334852928,1723609840963,-529.04,0.00014246,2]
[334852929,1723609840973,-500.0,0.00014246,2]
[334852930,1723609840984,-1026.61,0.00014246,2]
[334852931,1723609840996,-500.0,0.00014246,2]
[334852932,1723609841005,-1426.92,0.00014246,2]
[334852933,1723609841015,-934.99,0.00014246,2]
[334852934,1723609841024,-500.0,0.00014246,2]
[334852935,1723609841034,-1110.01,0.00014246,2]
[334852936,1723609841043,-231.40820114,0.00014246,2]
[334852937,1723609841052,-500.0,0.00014246,2]
[334852938,1723609841063,-1062.19,0.00014246,2]
[334852939,1723609841073,-564.90064086,0.00014246,2]
[334852940,1723609841082,-1885.75,0.00014246,2]
[334852941,1723609841092,-1081.43,0.00014246,2]
[334852942,1723609841103,-1417.64,0.00014246,2]
[334852943,1723609841112,-500.0,0.00014246,2]
[334852944,1723609841122,-500.0,0.00014246,2]
[334852945,1723609841131,-687.0,0.00014246,2]
[334852946,1723609841141,-500.0,0.00014246,2]
[334852947,1723609841150,-500.0,0.00014246,2]
[334852948,1723609841159,-779.74,0.00014246,2]
[334852949,1723609841168,-681.03,0.00014246,2]
[334852950,1723609841177,-500.0,0.00014246,2]
[334852951,1723609841187,-500.0,0.00014246,2]
[334852952,1723609841197,-533.04,0.00014246,2]
[334852953,1723609841207,-500.0,0.00014246,2]
[334852954,1723609841216,-648.57,0.00014246,2]
[334852955,1723609841226,-500.0,0.00014246,2]
[334852956,1723609841235,-859.4,0.00014246,2]
[334852957,1723609841245,-500.0,0.00014246,2]
[334852958,1723609841255,-500.0,0.00014246,2]
[334852959,1723609841264,-573.93,0.00014246,2]
[334852960,1723609841274,-500.0,0.00014246,2]
[334852961,1723609841283,-575.8,0.00014246,2]
[334852962,1723609841292,-500.0,0.00014246,2]
[334852963,1723609841302,-1073.74,0.00014246,2]
[334852964,1723609841311,-2787.92,0.00014246,2]
[334852965,1723609841320,-784.46,0.00014246,2]
[334852966,1723609841330,-548.88,0.00014246,2]
[334852967,1723609841339,-500.0,0.00014246,2]
[334852968,1723609841349,-813.12,0.00014246,2]
[334852969,1723609841358,-1169.53,0.00014246,2]
[334852970,1723609841368,-500.0,0.00014246,2]
[334852971,1723609841377,-500.0,0.00014246,2]
[334852972,1723609841387,-500.0,0.00014246,2]
[334852973,1723609841397,-550.41,0.00014246,2]
[334852974,1723609841407,-500.0,0.00014246,2]
[334852975,1723609841416,-874.05,0.00014246,2]
[334852976,1723609841426,-662.44,0.00014246,2]
[334852977,1723609841435,-514.89,0.00014246,2]
[334852978,1723609841445,-897.12,0.00014246,2]
[334852979,1723609841455,-500.0,0.00014246,2]
[334852980,1723609841464,-722.1,0.00014246,2]
[334852981,1723609841474,-1677.46,0.00014246,2]
[334852982,1723609841484,-500.0,0.00014246,2]
[334852983,1723609841493,-827.12,0.00014246,2]
[334852984,1723609841503,-1331.11,0.00014246,2]
[334852985,1723609841512,-500.0,0.00014246,2]
[334852986,1723609841521,-500.0,0.00014246,2]
[334852987,1723609841531,-747.02,0.00014246,2]
[334852988,1723609841540,-500.0,0.00014246,2]
[334852989,1723609841550,-500.0,0.00014246,2]
[334852990,1723609841559,-979.9,0.00014246,2]
[334852991,1723609841569,-1337.17,0.00014246,2]
[334852992,1723609841578,-2317.78,0.00014246,2]
[334852993,1723609841588,-620.81129227,0.00014246,2]
[334852994,1723609841597,-1767.63,0.00014246,2]
[334852995,1723609841607,-768.37,0.00014246,2]
[334852996,1723609841616,-500.0,0.00014246,2]
[334852997,1723609841626,-1308.24,0.00014246,2]
[334852998,1723609841635,-665.33,0.00014246,2]
[334852999,1723609841645,-1152.45,0.00014246,2]
[334853000,1723609841655,-500.0,0.00014246,2]
[334853001,1723609841665,-500.0,0.00014246,2]
[334853002,1723609841674,-500.0,0.00014246,2]
[334853003,1723609841684,-500.0,0.00014246,2]
[334853004,1723609841694,-573.78,0.00014246,2]
[334853005,1723609841704,-561.17,0.00014246,2]
[334853006,1723609841714,-543.31,0.00014246,2]
[334853007,1723609841725,-727.32,0.00014246,2]
[334853008,1723609841734,-1911.45,0.00014246,2]
[334853009,1723609841744,-793.97,0.00014246,2]
[334853010,1723609841753,-500.0,0.00014246,2]
[334853011,1723609841762,-500.0,0.00014246,2]
[334853012,1723609841771,-500.0,0.00014246,2]
[334853013,1723609841781,-574.12,0.00014246,2]
[334853014,1723609841790,-500.0,0.00014246,2]
[334853015,1723609841801,-1032.04,0.00014246,2]
[334853016,1723609841811,-831.96,0.00014246,2]
[334853017,1723609841820,-500.0,0.00014246,2]
[334853018,1723609841830,-1203.92,0.00014246,2]
[334853019,1723609841840,-788.71,0.00014246,2]
[334853020,1723609841850,-500.0,0.00014246,2]
[334853021,1723609841859,-1101.68,0.00014246,2]
[334853022,1723609841870,-548.96,0.00014246,2]
[334853023,1723609841879,-500.0,0.00014246,2]
[334853024,1723609841890,-1753.38,0.00014246,2]
[334853025,1723609841900,-1248.17,0.00014246,2]
[334853026,1723609841910,-1358.16,0.00014246,2]
[334853027,1723609841919,-524.48,0.00014246,2]
[334853028,1723609841929,-757.67,0.00014246,2]
[334853029,1723609841939,-500.0,0.00014246,2]
[334853030,1723609841948,-1262.29,0.00014246,2]
[334853031,1723609841958,-500.0,0.00014246,2]
[334853032,1723609841967,-1063.98,0.00014246,2]
[334853033,1723609841976,-1515.14,0.00014246,2]
[334853034,1723609841990,-500.0,0.00014246,2]
[334853035,1723609842000,-1432.6,0.00014246,2]
[334853036,1723609842010,-1036.82,0.00014246,2]
[334853037,1723609842019,-515.71,0.00014246,2]
[334853038,1723609842030,-517.32,0.00014246,2]
[334853039,1723609842039,-1528.48,0.00014246,2]
[334853040,1723609842049,-500.0,0.00014246,2]
[334853041,1723609842058,-531.49,0.00014246,2]
[334853042,1723609842070,-633.1,0.00014246,2]
[334853043,1723609842080,-500.0,0.00014246,2]
[334853044,1723609842090,-500.0,0.00014246,2]
[334853045,1723609842100,-500.0,0.00014246,2]
[334853046,1723609842110,-949.66,0.00014246,2]
[334853047,1723609842122,-670.33,0.00014246,2]
[334853048,1723609842135,-500.0,0.00014246,2]
[334853049,1723609842147,-611.16,0.00014246,2]
[334853050,1723609842160,-1056.45,0.00014246,2]
[334853051,1723609842172,-1394.22,0.00014246,2]
[334853052,1723609842183,-500.0,0.00014246,2]
[334853053,1723609842194,-500.0,0.00014246,2]
[334853054,1723609842204,-500.0,0.00014246,2]
[334853055,1723609842217,-500.0,0.00014246,2]
[334853056,1723609842228,-500.0,0.00014246,2]
[334853057,1723609842240,-1262.52,0.00014246,2]
[334853058,1723609842252,-649.6,0.00014246,2]
[334853059,1723609842264,-858.99,0.00014246,2]
[334853060,1723609842276,-862.28,0.00014246,2]
[334853061,1723609842289,-500.0,0.00014246,2]
[334853062,1723609842300,-500.0,0.00014246,2]
[334853063,1723609842313,-668.29,0.00014246,2]
[334853064,1723609842324,-500.0,0.00014246,2]
[334853065,1723609842337,-500.0,0.00014246,2]
[334853066,1723609842348,-994.54,0.00014246,2]
[334853067,1723609842360,-500.0,0.00014246,2]
[334853068,1723609842371,-500.0,0.00014246,2]
[334853069,1723609842382,-500.0,0.00014246,2]
[334853070,1723609842394,-500.0,0.00014246,2]
[334853071,1723609842404,-500.0,0.00014246,2]
[334853072,1723609842415,-500.0,0.00014246,2]